bitfinex/quotes_BTCUSD_20240723
["timestamp","ask_amount","ask_price","bid_price","bid_amount"]
[1721750057173,0.2973,66629.0,66628.0,0.026]
[1721750057391,0.82104242,66629.0,66628.0,0.014]
[1721750057807,0.37078942,66629.0,66628.0,0.014]
[1721750057815,0.05,66611.0,66610.0,0.300255]
[1721750058027,0.05,66611.0,66610.0,0.92768241]
[1721750058240,0.193,66611.0,66610.0,1.22793741]
[1721750058456,0.1325,66619.0,66618.0,0.150109]
[1721750058655,0.1325,66619.0,66618.0,0.89756691]
[1721750058873,0.1325,66619.0,66618.0,1.19778591]
[1721750059692,0.1325,66619.0,66618.0,0.89756691]
[1721750059978,0.1325,66619.0,66618.0,1.3315657]
[1721750060203,0.1325,66619.0,66618.0,1.3175657]
[1721750060600,0.1325,66619.0,66618.0,1.3315657]
[1721750060836,0.1325,66619.0,66618.0,1.3305657]
[1721750061219,0.1325,66619.0,66618.0,1.22478591]
[1721750061416,0.1325,66619.0,66618.0,1.21178591]
[1721750061762,0.1325,66619.0,66618.0,0.91156691]
[1721750062160,0.1325,66619.0,66618.0,1.21178591]
[1721750062364,0.1325,66619.0,66618.0,1.19778591]
[1721750062739,0.05,66620.0,66618.0,0.2767985]
[1721750062940,0.05,66620.0,66619.0,1.19776891]
[1721750064115,0.0605,66621.0,66619.0,1.19776891]
[1721750064116,0.05,66621.0,66620.0,0.30021]
[1721750064316,0.0829,66624.0,66620.0,0.30021]
[1721750064317,0.05,66622.0,66620.0,0.25610256]
[1721750064522,0.05,66622.0,66621.0,1.050717]
[1721750065356,0.1143,66619.0,66618.0,0.32059989]
[1721750065574,0.2972,66619.0,66618.0,0.02038489]
[1721750065773,0.15,66610.0,66609.0,0.450388]
[1721750065978,0.15,66610.0,66609.0,0.59740791]
[1721750066413,0.15,66610.0,66603.0,0.000913]
[1721750066414,0.15,66604.0,66603.0,0.000913]
[1721750066765,0.28778942,66604.0,66603.0,0.01096495]
[1721750066968,0.28778942,66604.0,66603.0,0.16110795]
[1721750067127,0.28778942,66604.0,66603.0,0.000913]
[1721750067330,0.36588942,66604.0,66603.0,0.000913]
[1721750067961,0.36688942,66604.0,66603.0,0.006913]
[1721750068163,0.36688942,66604.0,66603.0,0.157056]
[1721750068365,0.2934,66604.0,66603.0,0.98144564]
[1721750069137,0.2934,66604.0,66603.0,0.98344564]
[1721750069366,0.2924,66604.0,66603.0,0.97744564]
[1721750069536,0.2924,66604.0,66603.0,0.59836191]
[1721750070138,0.2924,66604.0,66603.0,0.60736191]
[1721750070302,0.2934,66604.0,66603.0,0.91564791]
[1721750070572,0.2934,66604.0,66603.0,0.168056]
[1721750070921,0.2934,66604.0,66603.0,0.63216751]
[1721750071122,0.2934,66604.0,66603.0,0.91945351]
[1721750071123,0.2924,66604.0,66603.0,0.91945351]
[1721750071957,0.2924,66604.0,66603.0,0.91545351]
[1721750072226,0.2924,66604.0,66603.0,1.21573951]
[1721750072589,0.2934,66604.0,66603.0,1.22473951]
[1721750073069,0.2924,66604.0,66603.0,0.91545351]
[1721750073275,0.2934,66604.0,66603.0,0.90764791]
[1721750073483,0.2934,66604.0,66603.0,0.60736191]
[1721750073681,0.2934,66604.0,66603.0,0.005913]
[1721750073883,0.2934,66604.0,66603.0,0.465342]
[1721750073884,0.2944,66604.0,66603.0,0.465342]
[1721750074466,0.2944,66604.0,66603.0,0.765628]
[1721750075522,0.2944,66604.0,66603.0,0.760628]
[1721750075698,0.2924,66604.0,66603.0,0.90364791]
[1721750075902,0.2924,66604.0,66603.0,0.91264791]
[1721750076049,0.2934,66604.0,66603.0,0.91264791]
[1721750077411,0.2934,66604.0,66603.0,0.31207591]
[1721750077758,0.2934,66604.0,66603.0,0.61236191]
[1721750078080,0.2934,66604.0,66603.0,0.91264791]
[1721750078286,0.2934,66604.0,66603.0,1.03495148]
[1721750078715,0.2934,66604.0,66603.0,0.91264791]
[1721750084015,0.2934,66604.0,66603.0,1.21293391]
[1721750084215,0.151,66604.0,66603.0,1.21293391]
[1721750085008,0.051,66604.0,66603.0,1.42653391]
[1721750085213,0.051,66604.0,66603.0,1.87378256]
[1721750085421,0.051,66604.0,66603.0,1.57349656]
[1721750087047,0.051,66604.0,66603.0,1.21293391]
[1721750087048,0.2331,66604.0,66603.0,1.21293391]
[1721750087578,0.2331,66604.0,66603.0,0.91264791]
[1721750089311,0.2331,66604.0,66603.0,0.96527525]
[1721750089964,0.2331,66604.0,66603.0,0.91264791]
[1721750090176,0.2331,66604.0,66603.0,1.08765053]
[1721750091491,0.2331,66604.0,66603.0,1.08776758]
[1721750091700,0.2952,66604.0,66603.0,0.014913]
[1721750092127,0.495341,66604.0,66603.0,0.014913]
[1721750092337,0.795623,66604.0,66603.0,0.014913]
[1721750092742,0.495341,66604.0,66603.0,0.014913]
[1721750093361,0.795623,66604.0,66603.0,0.014913]
[1721750094655,0.2952,66604.0,66603.0,0.014913]
[1721750094865,0.2952,66604.0,66603.0,0.165056]
[1721750095068,0.2952,66604.0,66603.0,0.465342]
[1721750095327,0.2952,66604.0,66603.0,0.5183804]
[1721750096271,0.2952,66604.0,66603.0,0.96568631]
[1721750096685,0.2952,66604.0,66603.0,1.06328149]
[1721750097434,0.2952,66604.0,66603.0,0.91264791]
[1721750097639,0.2952,66604.0,66603.0,0.96606073]
[1721750100043,0.1952,66604.0,66603.0,1.26634673]
[1721750100250,0.001,66604.0,66603.0,1.26634673]
[1721750100450,0.051,66604.0,66603.0,1.66018256]
[1721750100651,0.051,66604.0,66603.0,1.41323023]
[1721750100874,0.2166,66604.0,66603.0,0.51867567]
[1721750101094,0.2916,66604.0,66603.0,0.06824513]
[1721750101302,0.3416,66604.0,66603.0,0.06824513]
[1721750101534,0.792023,66604.0,66603.0,0.06824513]
[1721750101736,0.792023,66604.0,66603.0,0.014913]
[1721750101737,0.2916,66604.0,66603.0,0.014913]
[1721750101980,0.2916,66604.0,66603.0,0.06803905]
[1721750102160,0.72936023,66604.0,66603.0,1e-08]
[1721750102365,0.4314918,66604.0,66603.0,1e-08]
[1721750102567,0.36508942,66604.0,66603.0,1e-08]
[1721750102725,0.36508942,66604.0,66601.0,0.150147]
[1721750102726,0.15,66602.0,66601.0,0.150147]
[1721750102953,0.15,66602.0,66601.0,0.2481246]
[1721750103261,0.15,66602.0,66601.0,0.8487146]
[1721750103643,0.15,66602.0,66601.0,0.8036693]
[1721750104083,0.151,66602.0,66601.0,0.8106693]
[1721750105160,0.152,66602.0,66601.0,0.8106693]
[1721750105875,0.052,66602.0,66601.0,1.1109643]
[1721750106101,0.151,66602.0,66601.0,1.11297381]
[1721750106991,0.151,66602.0,66601.0,1.22427119]
[1721750107609,0.151,66602.0,66601.0,1.11297381]
[1721750107815,0.151,66602.0,66601.0,0.51238381]
[1721750108040,0.19525561,66602.0,66601.0,0.51238381]
[1721750108195,0.151,66602.0,66601.0,0.06194181]
[1721750108547,0.151,66602.0,66601.0,0.009]
[1721750108946,0.72029296,66602.0,66601.0,0.009]
[1721750109154,0.3409,66602.0,66601.0,0.009]
[1721750109352,0.3409,66602.0,66601.0,0.06206061]
[1721750109931,0.2909,66602.0,66601.0,0.06206061]
[1721750110134,0.52164521,66602.0,66601.0,0.06206061]
[1721750110337,0.2909,66602.0,66601.0,0.06206061]
[1721750110534,0.35733543,66602.0,66601.0,0.06206061]
[1721750110822,0.40733543,66602.0,66601.0,0.06206061]
[1721750111009,0.35733543,66602.0,66601.0,0.06206061]
[1721750111209,0.2909,66602.0,66601.0,0.06206061]
[1721750111355,0.35740078,66602.0,66601.0,0.06206061]
[1721750111759,0.2909,66602.0,66601.0,0.06206061]
[1721750112154,0.67414072,66602.0,66601.0,0.06246281]
[1721750112867,0.58548605,66602.0,66601.0,0.06246281]
[1721750113469,0.67414072,66602.0,66601.0,0.06246281]
[1721750114238,0.2909,66602.0,66601.0,0.06246281]
[1721750114954,0.58536689,66602.0,66601.0,0.06246281]
[1721750115360,0.58535235,66602.0,66601.0,0.06271121]
[1721750115573,0.2909,66602.0,66601.0,0.06271121]
[1721750116555,0.35735308,66602.0,66601.0,0.06271121]
[1721750117098,0.67376856,66602.0,66601.0,0.06271121]
[1721750117322,0.2909,66602.0,66601.0,0.06271121]
[1721750118264,0.35731111,66602.0,66601.0,0.06271121]
[1721750118492,0.35731072,66602.0,66601.0,0.06266328]
[1721750119415,0.35731072,66602.0,66601.0,0.06273279]
[1721750119416,0.2909,66602.0,66601.0,0.06273279]
[1721750119973,0.85772833,66602.0,66601.0,0.06273279]
[1721750120178,1.38183748,66602.0,66601.0,0.009]
[1721750120385,1.03138666,66602.0,66601.0,0.009]
[1721750120815,0.3573016,66602.0,66601.0,0.06283816]
[1721750121464,0.2909,66602.0,66601.0,0.009]
[1721750121667,0.35730292,66602.0,66601.0,0.21298511]
[1721750121875,0.35730292,66602.0,66601.0,0.06283811]
[1721750122079,0.58400859,66602.0,66601.0,0.009]
[1721750122292,0.35730805,66602.0,66601.0,0.06307441]
[1721750122490,0.35730805,66602.0,66601.0,0.21322141]
[1721750122824,0.19527095,66602.0,66601.0,0.81381141]
[1721750123023,0.52653631,66602.0,66601.0,0.759737]
[1721750123237,0.52653631,66602.0,66601.0,0.459442]
[1721750123638,0.151,66602.0,66601.0,0.159147]
[1721750123843,0.26168008,66602.0,66601.0,0.459442]
[1721750124068,0.151,66602.0,66601.0,0.459442]
[1721750124270,0.4335621,66602.0,66601.0,0.459442]
[1721750124428,0.151,66602.0,66601.0,0.459442]
[1721750124635,0.23954231,66602.0,66601.0,0.759737]
[1721750124836,0.151,66602.0,66601.0,0.80758973]
[1721750125058,0.19527401,66602.0,66601.0,0.80758973]
[1721750125910,0.58079432,66602.0,66601.0,0.009]
[1721750126364,0.2936,66602.0,66601.0,0.05720981]
[1721750127232,0.744036,66602.0,66601.0,0.05720981]
[1721750127411,0.443745,66602.0,66601.0,0.05720981]
[1721750127615,0.744036,66602.0,66601.0,0.05789969]
[1721750127767,0.81044982,66602.0,66601.0,0.05789969]
[1721750127973,0.744036,66602.0,66601.0,0.05789969]
[1721750129159,0.2936,66602.0,66601.0,0.05789969]
[1721750129362,0.3378776,66602.0,66601.0,0.05789969]
[1721750129983,0.051,66602.0,66601.0,1.30678757]
[1721750130187,0.051,66602.0,66601.0,1.00649257]
[1721750130563,0.051,66602.0,66601.0,0.3550666]
[1721750130564,0.151,66602.0,66601.0,0.3550666]
[1721750130683,0.151,66602.0,66601.0,0.60646191]
[1721750131312,0.151,66602.0,66601.0,0.30616691]
[1721750131522,0.151,66602.0,66601.0,0.60646191]
[1721750131916,0.151,66602.0,66601.0,0.60446191]
[1721750132362,0.151,66602.0,66601.0,0.61346191]
[1721750132568,0.151,66602.0,66601.0,0.6236716]
[1721750132767,0.15,66602.0,66601.0,0.6166716]
[1721750132972,0.051,66602.0,66601.0,0.9279666]
[1721750133172,0.051,66602.0,66601.0,1.31995946]
[1721750135115,0.051,66602.0,66601.0,1.2282616]
[1721750136524,0.151,66602.0,66601.0,1.2282616]
[1721750136697,0.2295,66602.0,66601.0,0.470442]
[1721750137219,0.051,66602.0,66601.0,0.91775691]
[1721750137382,0.051,66602.0,66601.0,1.21805191]
[1721750137588,0.051,66602.0,66601.0,1.4612945]
[1721750138005,0.051,66602.0,66601.0,1.7615895]
[1721750139717,0.001,66602.0,66601.0,2.0618845]
[1721750140788,0.001,66602.0,66601.0,2.9218845]
[1721750140989,0.04419702,66611.0,66610.0,1.962402]
[1721750141278,0.05,66619.0,66618.0,0.450328]
[1721750141488,0.05,66620.0,66619.0,0.450321]
[1721750141644,0.05,66625.0,66624.0,0.150096]
[1721750141850,0.15,66625.0,66624.0,1.2297035]
[1721750142047,0.05,66625.0,66624.0,1.2297035]
[1721750143058,0.05,66625.0,66624.0,1.4433035]
[1721750143262,0.05,66625.0,66624.0,1.7434955]
[1721750143381,0.00084,66628.0,66627.0,0.150089]
[1721750143584,0.05084,66628.0,66627.0,1.22064291]
[1721750143796,0.00084,66628.0,66627.0,1.52082091]
[1721750144007,0.00084,66628.0,66627.0,1.72082091]
[1721750144210,0.05084,66628.0,66627.0,1.86778356]
[1721750144412,0.00084,66628.0,66627.0,1.86778356]
[1721750144837,0.05084,66628.0,66627.0,1.86778356]
[1721750145241,0.05084,66628.0,66627.0,1.66778356]
[1721750145418,0.05084,66628.0,66627.0,1.19764291]
[1721750145624,0.05084,66628.0,66627.0,1.19964291]
[1721750146051,0.05084,66628.0,66627.0,1.19764291]
[1721750146228,0.05084,66628.0,66627.0,1.21164291]
[1721750146848,0.05084,66628.0,66627.0,1.19764291]
[1721750147051,0.05084,66628.0,66627.0,1.33975745]
[1721750147262,0.05084,66628.0,66627.0,1.35375745]
[1721750147470,0.05084,66628.0,66627.0,1.36775745]
[1721750147688,0.05084,66628.0,66627.0,1.22564291]
[1721750147892,0.15084,66628.0,66627.0,0.62528691]
[1721750148246,0.29184,66628.0,66627.0,0.164089]
[1721750148474,0.29184,66628.0,66627.0,0.150089]
[1721750148671,0.15,66626.0,66625.0,0.150093]
[1721750148874,0.15,66626.0,66625.0,0.59729991]
[1721750149090,0.15,66626.0,66619.0,0.300213]
[1721750149290,0.14184,66628.0,66617.0,0.522111]
[1721750149291,0.2317,66618.0,66617.0,0.522111]
[1721750149495,0.2317,66618.0,66617.0,1.01785533]
[1721750149723,0.2317,66618.0,66617.0,1.31807833]
[1721750149901,0.1317,66618.0,66617.0,1.32805498]
[1721750150087,0.1317,66618.0,66617.0,1.47501763]
[1721750150088,0.05,66618.0,66617.0,1.47501763]
[1721750150281,0.05,66618.0,66617.0,1.77524063]
[1721750151108,0.05,66618.0,66617.0,1.78142198]
[1721750151563,0.05,66618.0,66617.0,1.79442198]
[1721750151763,0.05,66618.0,66617.0,1.77542198]
[1721750152790,0.05,66618.0,66617.0,1.78342198]
[1721750153194,0.05,66618.0,66617.0,1.77542198]
[1721750153536,0.05,66618.0,66617.0,1.78842198]
[1721750153792,0.05,66620.0,66619.0,1.050749]
[1721750153941,0.05,66620.0,66619.0,1.46005168]
[1721750154153,0.05,66620.0,66619.0,1.78326161]
[1721750155211,0.05,66620.0,66619.0,1.48304761]
[1721750155406,0.05,66620.0,66619.0,1.64301026]
[1721750156185,0.05,66620.0,66619.0,1.26944761]
[1721750157278,0.05,66620.0,66619.0,1.22076891]
[1721750157438,0.05,66620.0,66619.0,1.26959154]
[1721750158339,0.05,66620.0,66619.0,1.48319154]
[1721750158539,0.05,66620.0,66619.0,1.50619154]
[1721750158746,0.05,66620.0,66619.0,1.65315419]
[1721750160366,0.05,66620.0,66619.0,1.60433156]
[1721750160593,0.05,66620.0,66619.0,1.95333401]
[1721750162710,0.05,66620.0,66619.0,1.95305577]
[1721750163267,0.00084,66628.0,66627.0,1.050623]
[1721750163472,0.05084,66628.0,66627.0,1.19764291]
[1721750164482,0.05084,66628.0,66627.0,1.19864291]
[1721750165749,0.05084,66628.0,66627.0,1.20264291]
[1721750165958,0.05084,66628.0,66627.0,1.34960556]
[1721750166357,0.05084,66628.0,66627.0,1.35958283]
[1721750168172,0.29524,66628.0,66627.0,0.01497727]
[1721750168377,0.29524,66628.0,66627.0,0.16199718]
[1721750168584,0.29524,66628.0,66627.0,0.61226418]
[1721750168787,0.29524,66628.0,66627.0,0.31208618]
[1721750169213,0.29524,66628.0,66627.0,0.35974984]
[1721750169420,0.29524,66628.0,66627.0,0.65992784]
[1721750170059,0.29524,66628.0,66627.0,0.61226418]
[1721750170267,0.29524,66628.0,66627.0,0.65994066]
[1721750170627,0.29524,66628.0,66627.0,0.78597313]
[1721750170829,0.29524,66628.0,66627.0,1.08615113]
[1721750172241,0.29524,66628.0,66627.0,1.08595987]
[1721750172242,0.19524,66628.0,66627.0,1.08595987]
[1721750172385,0.29524,66628.0,66627.0,1.08595987]
[1721750172595,0.24524,66628.0,66627.0,0.2094824]
[1721750172771,0.29524,66628.0,66627.0,0.30210891]
[1721750172972,0.29524,66628.0,66627.0,0.65043735]
[1721750173195,0.24524,66628.0,66627.0,0.95061535]
[1721750173473,0.29524,66628.0,66627.0,1.07672255]
[1721750174085,0.29524,66628.0,66627.0,0.9506083]
[1721750175108,0.29524,66628.0,66627.0,0.90246491]
[1721750175451,0.19524,66628.0,66627.0,0.95030321]
[1721750175637,0.05084,66628.0,66627.0,0.95030321]
[1721750175843,0.05084,66628.0,66627.0,1.06772775]
[1721750176141,0.05084,66628.0,66627.0,1.36790575]
[1721750177293,0.00084,66628.0,66627.0,1.58150575]
[1721750177482,0.05084,66628.0,66627.0,1.39090575]
[1721750178345,0.05084,66628.0,66627.0,1.38998167]
[1721750178985,0.00084,66628.0,66627.0,1.38998167]
[1721750179413,0.00084,66628.0,66627.0,1.60358167]
[1721750179610,0.00084,66628.0,66627.0,2.00115967]
[1721750180267,0.00084,66628.0,66627.0,2.10115967]
[1721750180486,0.00796,66631.0,66630.0,1.550742]
[1721750180672,0.00796,66631.0,66630.0,3.09480378]
[1721750180897,0.00796,66631.0,66630.0,3.17297832]
[1721750181258,0.00796,66631.0,66630.0,3.17435207]
[1721750181468,0.00376412,66632.0,66631.0,1.44812]
[1721750181676,0.00376412,66632.0,66631.0,2.69858327]
[1721750182270,0.00376412,66632.0,66631.0,3.5056644]
[1721750182426,0.01,66644.0,66643.0,1.050371]
[1721750182627,0.01,66644.0,66643.0,1.78148956]
[1721750183689,0.01,66644.0,66643.0,1.79148956]
[1721750183860,0.01,66644.0,66643.0,1.9089141]
[1721750184260,0.06,66644.0,66643.0,1.86152145]
[1721750184469,0.06,66644.0,66643.0,1.91477471]
[1721750184674,0.06,66644.0,66643.0,1.92677471]
[1721750185523,0.06,66644.0,66643.0,1.92698541]
[1721750185899,0.01,66644.0,66643.0,1.93678204]
[1721750186887,0.01,66644.0,66643.0,2.03418204]
[1721750187310,0.01,66644.0,66643.0,2.33428804]
[1721750187488,0.05,66653.0,66649.0,1.563955]
[1721750187688,0.0652,66659.0,66649.0,2.23448052]
[1721750187689,0.05064,66656.0,66649.0,2.23448052]
[1721750187888,0.00064,66656.0,66649.0,2.23448052]
[1721750188956,0.00064,66656.0,66649.0,2.24748052]
[1721750189311,0.00064,66656.0,66655.0,1.350234]
[1721750189497,0.00064,66656.0,66655.0,1.78731787]
[1721750189699,0.00064,66656.0,66655.0,1.83129872]
[1721750190199,0.00064,66656.0,66655.0,1.92869872]
[1721750190408,0.00064,66656.0,66655.0,2.27528676]
[1721750190613,0.00064,66656.0,66655.0,2.328509]
[1721750190761,0.00064,66656.0,66655.0,3.098509]
[1721750191342,0.00064,66656.0,66655.0,3.108509]
[1721750191763,0.00064,66656.0,66655.0,3.129509]
[1721750192237,0.00846,66662.0,66655.0,3.129509]
[1721750192238,0.00846,66662.0,66661.0,1.350112]
[1721750192554,0.00846,66662.0,66661.0,2.99375691]
[1721750192770,0.00846,66668.0,66667.0,1.349991]
[1721750192972,0.00846,66668.0,66667.0,2.65101091]
[1721750193198,0.00838,66668.0,66667.0,2.79797356]
[1721750193974,0.00838,66668.0,66667.0,2.84950978]
[1721750194464,0.00838,66668.0,66667.0,2.86350978]
[1721750194576,0.00838,66668.0,66667.0,2.81197356]
[1721750194979,0.00838,66668.0,66667.0,2.82597356]
[1721750195972,0.00838,66668.0,66667.0,2.83997356]
[1721750196107,0.00838,66668.0,66667.0,2.84996766]
[1721750196307,0.00838,66668.0,66667.0,2.83596766]
[1721750196845,0.00838,66668.0,66667.0,2.12996766]
[1721750197220,0.00838,66668.0,66667.0,2.03256766]
[1721750197420,0.05838,66668.0,66667.0,1.73256966]
[1721750197595,0.00838,66668.0,66667.0,2.03256766]
[1721750198280,0.05838,66668.0,66667.0,1.73256966]
[1721750198875,0.00838,66668.0,66667.0,1.73256966]
[1721750199047,0.05838,66668.0,66667.0,1.73256966]
[1721750199452,0.00838,66668.0,66667.0,1.73256966]
[1721750199597,0.05838,66668.0,66667.0,1.73256966]
[1721750201066,0.05838,66668.0,66667.0,1.26260901]
[1721750201278,0.12168,66668.0,66667.0,1.26260901]
[1721750201442,0.12168,66668.0,66667.0,1.04900901]
[1721750202454,0.12168,66668.0,66667.0,1.07200901]
[1721750202865,0.12168,66668.0,66667.0,1.04400901]
[1721750203069,0.12168,66668.0,66667.0,1.19097166]
[1721750203292,0.12168,66668.0,66667.0,1.20497166]
[1721750203505,0.12168,66668.0,66667.0,1.19097166]
[1721750203864,0.12168,66668.0,66667.0,1.21897166]
[1721750204655,0.12168,66668.0,66667.0,1.51896966]
[1721750204834,0.12168,66668.0,66667.0,1.21897166]
[1721750205040,0.12168,66668.0,66667.0,2.00897166]
[1721750205240,0.12168,66668.0,66667.0,1.21897166]
[1721750205938,0.30268,66668.0,66667.0,0.19901401]
[1721750206067,0.30268,66668.0,66667.0,0.0519941]
[1721750206673,0.452677,66668.0,66667.0,0.042]
[1721750206881,0.30268,66668.0,66667.0,0.014]
[1721750207099,0.2922,66667.0,66666.0,0.01013758]
[1721750207304,0.2922,66667.0,66666.0,0.14701991]
[1721750208121,0.1317,66657.0,66656.0,0.450072]
[1721750208307,0.1317,66657.0,66656.0,0.67210571]
[1721750208501,0.1317,66657.0,66656.0,0.59709191]
[1721750208932,0.1317,66657.0,66656.0,0.89713991]
[1721750209161,0.1317,66657.0,66656.0,0.6069287]
[1721750209643,0.1317,66657.0,66656.0,0.9069767]
[1721750209844,0.1317,66657.0,66656.0,0.6069287]
[1721750210053,0.1957,66657.0,66656.0,0.14701991]
[1721750210285,0.05,66635.0,66634.0,0.300144]
[1721750210474,0.05,66630.0,66629.0,0.450253]
[1721750210686,0.05,66630.0,66629.0,1.24660405]
[1721750211123,0.189,66635.0,66634.0,0.150073]
[1721750211328,0.189,66635.0,66634.0,0.89738691]
[1721750211678,0.189,66635.0,66634.0,1.19753391]
[1721750211905,0.139,66635.0,66634.0,1.19753391]
[1721750212158,0.189,66635.0,66634.0,1.0385003]
[1721750212367,0.289,66635.0,66634.0,0.14701991]
[1721750212532,0.289,66635.0,66634.0,0.15709483]
[1721750213274,0.29,66635.0,66634.0,0.01907492]
[1721750213494,0.790213,66635.0,66634.0,0.016]
[1721750213673,1.389497,66635.0,66634.0,0.007]
[1721750213873,1.389497,66635.0,66617.0,0.360329]
[1721750213874,0.2883,66618.0,66617.0,0.210218]
[1721750214325,0.2883,66618.0,66617.0,0.52071647]
[1721750214954,0.2883,66618.0,66617.0,0.22049347]
[1721750215171,0.2883,66618.0,66617.0,0.44961013]
[1721750215373,0.2883,66618.0,66617.0,0.96795938]
[1721750215374,0.05,66618.0,66617.0,0.96795938]
[1721750215577,0.05,66618.0,66617.0,1.29118238]
[1721750216226,0.15,66618.0,66617.0,0.96795938]
[1721750216836,0.051,66618.0,66617.0,1.29318238]
[1721750217271,0.051,66618.0,66617.0,1.43350062]
[1721750217272,0.052,66618.0,66617.0,1.43350062]
[1721750218012,0.002,66618.0,66617.0,1.43350062]
[1721750218188,0.002,66618.0,66617.0,1.73372362]
[1721750219714,0.002,66618.0,66617.0,2.29144662]
[1721750219981,0.4753,66630.0,66629.0,0.750422]
[1721750220231,0.4753,66630.0,66629.0,0.92044191]
[1721750220398,0.05,66632.0,66629.0,0.92044191]
[1721750220399,0.05,66632.0,66631.0,0.30016]
[1721750220532,0.05,66632.0,66631.0,0.62025991]
[1721750220739,0.05,66632.0,66631.0,0.95250706]
[1721750220950,0.15,66625.0,66624.0,1.924596]
[1721750221147,0.22348942,66625.0,66624.0,1.92151991]
[1721750221561,0.22348942,66625.0,66624.0,2.07161591]
[1721750221982,0.22348942,66625.0,66624.0,2.38203495]
[1721750222714,0.22348942,66625.0,66624.0,2.2288056]
[1721750222916,0.22348942,66625.0,66624.0,1.93174695]
[1721750223133,0.22348942,66625.0,66624.0,2.08184295]
[1721750223566,0.36588942,66625.0,66624.0,2.72174695]
[1721750223752,0.36588942,66625.0,66624.0,1.93174695]
[1721750223913,0.36588942,66625.0,66624.0,1.94774695]
[1721750224117,0.36588942,66625.0,66624.0,1.93874695]
[1721750224278,0.36588942,66625.0,66624.0,0.14701991]
[1721750224482,0.36588942,66625.0,66624.0,0.15201991]
[1721750225187,0.36588942,66625.0,66624.0,0.14701991]
[1721750225670,0.51598242,66625.0,66624.0,0.008]
[1721750226313,0.51598242,66625.0,66624.0,0.004]
[1721750226513,0.51598242,66625.0,66624.0,0.007]
[1721750227119,1.11635642,66625.0,66624.0,0.007]
[1721750227345,0.81616942,66625.0,66624.0,0.007]
[1721750228162,0.51598242,66625.0,66624.0,0.007]
[1721750228623,0.36588942,66625.0,66624.0,0.007]
[1721750233496,1.11635642,66625.0,66624.0,0.007]
[1721750233708,1.16635642,66625.0,66624.0,0.007]
[1721750234229,1.56654342,66625.0,66624.0,0.007]
[1721750234430,1.56654342,66625.0,66588.0,0.2]
[1721750234431,0.05,66596.0,66595.0,0.750805]
[1721750234632,0.05,66596.0,66595.0,0.89782491]
[1721750235388,0.05,66596.0,66595.0,0.95795491]
[1721750235590,0.15,66596.0,66595.0,0.20714991]
[1721750235951,0.15,66596.0,66595.0,0.14701991]
[1721750236322,0.15,66590.0,66589.0,0.381295]
[1721750236505,0.15,66590.0,66589.0,0.97883791]
[1721750236710,0.146,66590.0,66589.0,0.97883791]
[1721750236941,0.146,66590.0,66589.0,0.53843054]
[1721750237141,0.146,66590.0,66589.0,0.52831491]
[1721750237350,0.2864,66590.0,66589.0,0.52831491]
[1721750237723,0.2864,66590.0,66589.0,0.58845491]
[1721750238160,0.2864,66590.0,66589.0,0.60245491]
[1721750238684,0.2874,66590.0,66589.0,0.61345491]
[1721750238888,0.2874,66590.0,66589.0,0.094435]
[1721750238889,0.988262,66590.0,66589.0,0.094435]
[1721750239089,1.038262,66590.0,66589.0,0.034295]
[1721750239289,1.088262,66590.0,66589.0,0.034295]
[1721750239980,1.087262,66590.0,66589.0,0.009295]
[1721750240314,1.087262,66590.0,66589.0,0.016295]
[1721750240835,1.037262,66590.0,66589.0,0.016295]
[1721750241714,0.736917,66590.0,66589.0,0.016295]
[1721750241925,0.2864,66590.0,66589.0,0.016295]
[1721750242353,0.2864,66590.0,66589.0,0.49533001]
[1721750242557,0.2864,66590.0,66589.0,0.16331491]
[1721750242760,0.2864,66590.0,66589.0,0.31348891]
[1721750243515,0.2864,66590.0,66589.0,0.61383791]
[1721750244529,0.2864,66590.0,66589.0,0.91418691]
[1721750244919,0.2864,66590.0,66589.0,0.016295]
[1721750245251,0.2864,66590.0,66589.0,0.91418691]
[1721750246384,0.2864,66590.0,66589.0,0.61383791]
[1721750246592,0.2864,66590.0,66589.0,0.31348891]
[1721750247224,0.2864,66590.0,66589.0,0.16331491]
[1721750247487,0.2864,66590.0,66589.0,0.31348891]
[1721750248617,0.2864,66590.0,66589.0,0.61383791]
[1721750248930,0.2864,66590.0,66589.0,0.016295]
[1721750248931,1.36292191,66590.0,66589.0,0.016295]
[1721750249117,1.466247,66590.0,66589.0,0.016295]
[1721750249318,1.516247,66590.0,66589.0,0.016295]
[1721750249524,1.487607,66590.0,66589.0,0.016295]
[1721750249729,1.487607,66590.0,66582.0,0.009295]
[1721750249730,0.146,66583.0,66582.0,0.009295]
[1721750249941,0.21948942,66583.0,66582.0,0.009295]
[1721750250140,0.35838942,66583.0,66582.0,0.009295]
[1721750250879,0.50857742,66583.0,66582.0,0.009295]
[1721750251128,0.80895342,66583.0,66582.0,0.011295]
[1721750251328,1.45970542,66583.0,66582.0,0.011295]
[1721750251504,1.40970542,66583.0,66582.0,0.011295]
[1721750251969,1.45970542,66583.0,66582.0,0.011295]
[1721750252095,1.41370542,66583.0,66582.0,0.011295]
[1721750252666,1.41370542,66583.0,66582.0,0.009295]
[1721750252667,1.40970542,66583.0,66582.0,0.009295]
[1721750252816,1.86008142,66583.0,66582.0,0.009295]
[1721750253018,2.31226398,66583.0,66582.0,0.009295]
[1721750253459,2.31426398,66583.0,66582.0,0.010295]
[1721750253625,2.33275803,66583.0,66582.0,0.010295]
[1721750253851,2.33075916,66583.0,66582.0,0.010295]
[1721750254051,1.389845,66575.0,66574.0,0.000924]
[1721750254254,1.46333442,66575.0,66574.0,0.000924]
[1721750254439,2.26896733,66575.0,66574.0,0.000924]
[1721750254643,2.31424112,66575.0,66574.0,0.000924]
[1721750255239,2.32573456,66575.0,66574.0,0.000924]
[1721750255439,2.46120377,66575.0,66574.0,0.000924]
[1721750255651,2.47269717,66575.0,66574.0,0.000924]
[1721750256114,2.61465412,66575.0,66574.0,0.000924]